Cogmind - Beta 13 @@@ ROGUE MODE // 2024.03.31 @ 11:41:32 Player: Zerindel Result: Destroyed by D-53 Grenadier with Mini Grenade Launcher Performance ------------- Evolutions (1) 500 Regions Visited (4) 800 Robots Destroyed (25) 125 Value Destroyed (567) 567 Prototype IDs (0) 0 Alien Tech Used (0) 0 Bonus (0) 0 TOTAL SCORE: 1992 Bonus ------- None Cogmind --------- Core Integrity 0/400 Matter 300/300 Energy 100/100 System Corruption 0% Temperature Cool (0) Movement Treading (240) Ox1 Location -9/Mines Parts ------- > --- POWER (1) -------- (None) > --- PROPULSION (2) --- Improved Treads > --- UTILITY (3) ------ Large Storage Unit Improved Targeting Computer Melee Analysis Suite > --- WEAPON (3) ------- Particle Cannon Katana Ripper > --- INVENTORY (15) --- Light Ion Engine Light Ion Engine Flight Unit Flight Unit Improved Heat Sink Improved Targeting Computer Improved Targeting Computer EM Pulse Gun Small Laser Light Assault Rifle Light Assault Rifle Light Assault Rifle Peak State ------------ > --- POWER ------------ Ion Engine > --- PROPULSION ------- Improved Treads Improved Treads > --- UTILITY ---------- Improved Heat Sink Large Storage Unit Improved Targeting Computer > --- WEAPON ----------- Particle Cannon Grenade Launcher Ripper > --- INVENTORY -------- Light Ion Engine Light Ion Engine Light Treads Light Treads Improved Treads Flight Unit Flight Unit Improved Targeting Computer Improved Targeting Computer EM Pulse Gun Particle Cannon Light Assault Rifle Light Assault Rifle Light Assault Rifle Heavy Assault Rifle [Rating: 20] Favorites ----------- Power Ion Engine Engine Ion Engine Propulsion Light Treads Treads Light Treads Leg Aluminum Leg Utility Large Storage Unit Device Improved Heat Sink Storage Large Storage Unit Processor Improved Targeting Computer Weapon Light Assault Rifle Energy Gun EM Pulse Gun Energy Cannon Particle Cannon Ballistic Gun Light Assault Rifle Launcher Grenade Launcher Special Weapon Mining Laser Slashing Weapon Ripper Build | -11 -10 -10 -9 -9 ------- Run | Yrd Mat Min Mat Min Slots Evolved 2 | . . . 2 . Power . | . . . . . Propulsion . | . . . . . Utility 1 | . . . 1 . Weapon 1 | . . . 1 . Parts Attached 27 | 6 4 1 9 7 Power 2 | 1 . . . 1 Engine 2 | 1 . . . 1 Core . | . . . . . Reactor . | . . . . . Propulsion 8 | 2 2 . 2 2 Treads 6 | . 2 . 2 2 Leg 2 | 2 . . . . Wheel . | . . . . . Hover . | . . . . . Flight . | . . . . . Utility 7 | 1 1 1 3 1 Device 2 | . . 1 1 . Storage 3 | 1 1 . 1 . Processor 2 | . . . 1 1 Hackware . | . . . . . Protection . | . . . . . Artifact . | . . . . . Weapon 10 | 2 1 . 4 3 Energy Gun 1 | 1 . . . . Energy Cannon 2 | . . . 1 1 Ballistic Gun 3 | 1 . . 1 1 Ballistic Cannon . | . . . . . Launcher 1 | . 1 . . . Special Weapon 1 | . . . 1 . Impact Weapon . | . . . . . Slashing Weapon 2 | . . . 1 1 Piercing Weapon . | . . . . . Special Melee Weapon . | . . . . . Unidentified Prototypes . | . . . . . Parts Lost 6 | . . . 1 5 Power 1 | . . . . 1 Propulsion 3 | . . . . 3 Utility . | . . . . . Weapon 2 | . . . 1 1 Highest Loss Streak 3 | . . . 1 3 To Critical Strikes . | . . . . . Average Slot Usage (%) 95 | . 85 97 97 94 Engine 12 | . 14 14 11 10 Treads 24 | . 18 28 22 19 Leg 1 | . 9 . . . Device 8 | . . 11 9 6 Storage 13 | . 14 14 11 11 Processor 4 | . . . 10 15 Energy Gun 1 | . 8 . . . Energy Cannon 3 | . . . 10 10 Ballistic Gun 11 | . 14 14 4 6 Launcher 9 | . 6 14 6 . Slashing Weapon 3 | . . . 6 14 Naked Turns . | . . . . . Heaviest Build 36 | 13 29 30 36 36 Greatest Support 46 | 20 40 40 46 46 Greatest Overweight (x) 1 | . 1 . . 1 Average Overweight (x) . | . . . . . Largest Inventory Capacity 15 | 8 15 15 15 15 Average Capacity 14 | 6 14 15 15 15 Most Carried 15 | 5 9 14 15 13 Average Carried 11 | 2 7 11 14 11 Final Capacity 15 | 8 15 15 15 15 Final Carried 14 | 4 9 14 13 12 Class Distribution -------------------- 87% | Mutant 8% | Gunner 4% | Gladiator Dominant Class ---------------- Mutant | -10/Materials Mutant | -10/Mines Mutant | -9/Materials Mutant | -9/Mines Resources | -11 -10 -10 -9 -9 ----------- Run | Yrd Mat Min Mat Min Matter Collected 561 | 208 142 25 109 77 Remotely . | . . . . . Salvage Created 628 | . 192 139 187 110 Parts 43 | . 13 8 17 5 Haulers Intercepted . | . . . . . Recyclers Shooed . | . . . . . Parts Field Recycled . | . . . . . Retrieved Matter . | . . . . . Parts Self-Destructed . | . . . . . Prevented . | . . . . . Kills | -11 -10 -10 -9 -9 ------- Run | Yrd Mat Min Mat Min Combat Hostiles Destroyed 25 | . 8 5 9 3 Melee 7 | . . . 5 2 Guns 6 | . 3 3 . . Cannons 4 | . . . 3 1 AOE 7 | . 5 2 . . Classes Destroyed 6 | . 2 . 2 2 Operator 1 | . . . 1 . Swarmer 13 | . 3 3 7 . Grunt 9 | . 5 2 1 1 Duelist 1 | . . . . 1 Sentry 1 | . . . 1 . Assembled 1 | . . . . 1 Best Kill Streak 5 | . 5 3 4 1 Combat Bots Only 5 | . 5 3 4 1 Max Kills in Single Turn 3 | . 3 2 1 1 Gunslinging . | . . . . . Exploded 3 | . 3 2 . . Melee 1 | . . . 1 1 Uniques/NPCs Destroyed . | . . . . . Combat | -11 -10 -10 -9 -9 -------- Run | Yrd Mat Min Mat Min Hostile Shots Fired 165 | . 21 5 67 72 Missed 35 | . 6 2 16 11 Damage Taken 1855 | . 144 22 434 1255 Core 426 | . 22 . 69 335 Absorbed by Shields . | . . . . . Regen/Repaired (Parts) 34 | . . . 34 . Core Remaining (%) 95 | 100 . 91 . . Volleys Fired 38 | . 10 5 13 10 Largest 2 | . 2 2 2 2 Hottest 168 | . 60 50 168 91 Shots Fired 67 | . 20 6 23 18 Gun 32 | . 16 5 3 8 Cannon 23 | . . . 13 10 Launcher 6 | . 4 1 1 . Special 6 | . . . 6 . Kinetic 26 | . 10 5 3 8 Thermal 29 | . . . 19 10 Explosive 6 | . 4 1 1 . Electromagnetic 6 | . 6 . . . Robot Hit Streak 8 | . 6 8 4 6 Robot Miss Streak 2 | . 1 . 2 2 Penetration Max . | . . . . . Secondary Targets . | . . . . . Shots Hit Robots 66 | . 13 6 26 21 Core Hits 30 | . 12 6 7 5 Critical Kills 1 | . . . 1 . Critical Parts Destroyed . | . . . . . Critical Strikes 4 | . . . 3 1 Meltdown 1 | . . . 1 . Sever 3 | . . . 2 1 Melee Attacks 36 | . . . 20 16 Impact . | . . . . . Slashing 36 | . . . 20 16 Piercing . | . . . . . Sneak Attacks . | . . . . . Combat Hostiles . | . . . . . Follow-up Attacks . | . . . . . Damage Inflicted 1645 | . 341 123 747 434 Guns 187 | . 91 44 13 39 Cannons 305 | . . . 204 101 Explosions 357 | . 250 79 28 . Melee 772 | . . . 478 294 Ramming . | . . . . . Kinetic 154 | . 58 44 13 39 Thermal 329 | . . . 228 101 Explosive 357 | . 250 79 28 . Electromagnetic 33 | . 33 . . . Impact . | . . . . . Slashing 772 | . . . 478 294 Piercing . | . . . . . Highest Corruption . | . . . . . Average Corruption . | . . . . . Corruption Purged . | . . . . . Corruption Blocked . | . . . . . Overload Shots . | . . . . . Overflow Damage 35 | . . . 33 2 Projectiles 18 | . . . 18 . Explosions . | . . . . . Melee 17 | . . . 15 2 Knockbacks . | . . . . . Impact . | . . . . . Kinetic . | . . . . . Secondary . | . . . . . Self-Inflicted Damage 12 | . 12 . . . Shots 1 | . 1 . . . Rammed . | . . . . . Targets Rammed . | . . . . . Kicked . | . . . . . Crushed . | . . . . . Highest Temperature 81 | . 40 10 81 44 Average Temperature 23 | . 16 7 45 20 Received Heat Transfer 234 | . 24 . 60 150 Siege Activations . | . . . . . Robots Corrupted . | . . . . . Combat Hostiles . | . . . . . Parts Fried . | . . . . . Impact Corruptions . | . . . . . Robots Melted 1 | . . . 1 . Combat Hostiles 1 | . . . 1 . Parts Melted 1 | . . . 1 . Heat Transferred 605 | . . . 420 185 Parts Sabotaged . | . . . . . Parts Stolen . | . . . . . Parts Stripped . | . . . . . Power Chain Reactions . | . . . . . Alert | -11 -10 -10 -9 -9 ------- Run | Yrd Mat Min Mat Min Peak Influence 347 | . 260 227 347 155 Initial 135 | . . 101 10 135 Average 112 | . 100 95 164 141 Maximum Alert Level 1 | . 1 1 1 . Low Security (%) 81 | 100 87 85 57 100 Level 1 18 | . 12 14 42 . Level 2 . | . . . . . Level 3 . | . . . . . Level 4 . | . . . . . Level 5 . | . . . . . High Security . | . . . . . Max Security . | . . . . . Squads Dispatched 2 | . 2 . . . Investigation 1 | . 1 . . . Extermination . | . . . . . Reinforcement 1 | . 1 . . . Assault . | . . . . . Garrison . | . . . . . Intercept . | . . . . . Searches Triggered . | . . . . . Construction Impeded . | . . . . . Haulers Reinforced . | . . . . . Active Scanning Responses . | . . . . . Cargo Convoy Interrupts . | . . . . . Stealth | -11 -10 -10 -9 -9 --------- Run | Yrd Mat Min Mat Min Distress Signals 2 | . 1 . 1 . Communications Jammed . | . . . . . Distress Signals . | . . . . . Times Spotted 54 | . 9 5 20 20 Peak Tracking Total 15 | . 4 3 6 15 Tactical Retreats 4 | . . . 3 1 Traps | -11 -10 -10 -9 -9 ------- Run | Yrd Mat Min Mat Min Traps Triggered 1 | . 1 . . . Indirectly . | . . . . . Trap Hack Attempts . | . . . . . Triggered . | . . . . . Disarmed . | . . . . . Reprogrammed . | . . . . . Reused . | . . . . . Traps Extracted . | . . . . . Installed . | . . . . . Triggered . | . . . . . Machines | -11 -10 -10 -9 -9 ---------- Run | Yrd Mat Min Mat Min Machines Disabled 1 | . 1 . . . Max in Single Turn 1 | . 1 . . . Machines Repaired . | . . . . . Machines Dismantled . | . . . . . Machines Sabotaged . | . . . . . Overloaded Fab Kills . | . . . . . Hacking | -11 -10 -10 -9 -9 --------- Run | Yrd Mat Min Mat Min Machines Accessed 2 | . 1 . 1 . Terminals 1 | . 1 . . . Fabricators . | . . . . . Repair Stations 1 | . . . 1 . Recycling Units . | . . . . . Scanalyzers . | . . . . . Garrison Access . | . . . . . Total Hacks 4 | . 2 . 2 . Successful 3 | . 1 . 2 . Failed 1 | . 1 . . . Catastrophic . | . . . . . Database Lockouts . | . . . . . Manual . | . . . . . Terminals 2 | . 2 . . . Fabricators . | . . . . . Repair Stations 2 | . . . 2 . Recycling Units . | . . . . . Scanalyzers . | . . . . . Garrison Access . | . . . . . Terminal Hacks 1 | . 1 . . . Robot Analysis 1 | . 1 . . . Fabricator Hacks . | . . . . . Repair Station Hacks 2 | . . . 2 . Scan Component 1 | . . . 1 . Repair 1 | . . . 1 . Recycling Unit Hacks . | . . . . . Scanalyzer . | . . . . . Garrison Access Hacks . | . . . . . Unauthorized Hacks . | . . . . . Terminals . | . . . . . Fabricators . | . . . . . Repair Stations . | . . . . . Recycling Units . | . . . . . Scanalyzers . | . . . . . Garrison Access . | . . . . . Data Cores Recovered 1 | . . . 1 . Used . | . . . . . Hacking Detections 2 | . 1 . 1 . Full Trace Events . | . . . . . Feedback Events . | . . . . . Feedback Blocked . | . . . . . Robot Schematics Acquired . | . . . . . Robots Built . | . . . . . Authchips . | . . . . . Time . | . . . . . Total Robot Build Rating . | . . . . . Part Schematics Acquired . | . . . . . Parts Built . | . . . . . Authchips . | . . . . . Time . | . . . . . Total Part Build Rating . | . . . . . Parts Repaired 1 | . . . 1 . Time 38 | . . . 38 . Parts Recycled . | . . . . . Recycled Matter . | . . . . . Retrieved Matter . | . . . . . Retrieved Components . | . . . . . Parts Scanalyzed . | . . . . . Part Schematics Acquired . | . . . . . Parts Damaged . | . . . . . Bothacking | -11 -10 -10 -9 -9 ------------ Run | Yrd Mat Min Mat Min Used RIF Installer . | . . . . . Robots Hacked . | . . . . . Non-combat . | . . . . . Combat . | . . . . . Robot Hacks Applied . | . . . . . Relay Couplers Released . | . . . . . Fabnet Peak Effective % . | . . . . . Robots Rewired . | . . . . . Allies Hacked . | . . . . . Hacks Repelled . | . . . . . Allies | -11 -10 -10 -9 -9 -------- Run | Yrd Mat Min Mat Min Total Allies 1 | . . 1 . . Largest Group 1 | . . 1 1 . Highest-Rated Group 31 | . . 31 31 . Highest-Rated Ally 31 | . . 31 31 . Total Orders . | . . . . . Ally Attacks 3 | . . . 3 . Total Damage . | . . . . . Kills . | . . . . . Allies Corrupted . | . . . . . Allies Melted . | . . . . . Intel | -11 -10 -10 -9 -9 ------- Run | Yrd Mat Min Mat Min Robot Analysis Total 1 | . 1 . . . Derelict Logs Recovered 1 | . . . . 1 Drone Launches . | . . . . . Drone Recoveries . | . . . . . Exploration | -11 -10 -10 -9 -9 ------------- Run | Yrd Mat Min Mat Min Turns Passed 1553 | 63 215 779 339 157 Spaces Moved 797 | 45 108 474 127 43 Core 9 | 9 . . . . Treads 726 | . 82 474 127 43 Legs 62 | 36 26 . . . Wheels . | . . . . . Hover . | . . . . . Flight . | . . . . . Fastest Speed 50 | 50 120 160 160 160 Average Speed 158 | 106 163 160 160 171 Slowest Speed 240 | 120 190 160 160 240 Overloaded Moves . | . . . . . Propulsion Burnouts . | . . . . . Robots Hopped . | . . . . . Cave-ins Triggered . | . . . . . Exploration Rate (%) 28 | 5 27 81 11 17 Regions Visited 4 Branch Regions 2 Pre-discovered Areas . | . . . . . Known Exits Taken . | . . . . . Unknown Exits Taken 4 | 1 1 1 1 . Scrap Searched . | . . . . . Spaces Dug . | . . . . . Terrain Destroyed 42 | . 26 6 10 . Melee . | . . . . . Projectile 2 | . . . 2 . AOE 40 | . 26 6 8 . Terrain Rammed . | . . . . . Walls Destroyed . | . . . . . Machines Disabled . | . . . . . Actions | -11 -10 -10 -9 -9 --------- Run | Yrd Mat Min Mat Min Total 963 | 60 127 490 199 87 Wait 24 | . . 5 14 5 Move 793 | 44 107 473 126 43 Hop . | . . . . . Pick Up 35 | 10 5 6 10 4 Fast Attach . | . . . . . Attach 17 | 6 1 1 4 5 Detach 2 | . 1 . . 1 Swap 10 | . 3 . 5 2 Drop 8 | . . . 7 1 Fire 38 | . 10 5 13 10 Melee 36 | . . . 20 16 Ram . | . . . . . Kick . | . . . . . Crush . | . . . . . Escape Stasis . | . . . . . Rewire . | . . . . . Trap . | . . . . . Miscellaneous . | . . . . . Route ------- -11/Scrapyard -10/Materials (discovered 2 exits: [*Min x2]) -10/Mines -9/Materials -9/Mines History --------- Turn | Location | Event 5 | -11/Scrapyard | Discovered new exit (range 16) 64 | -11/Scrapyard | Entered Materials 220 | -10/Materials | Discovered new exit (range 12) 258 | -10/Materials | Discovered new exit (range 12) 279 | -10/Materials | Entered Mines 301 | -10/Mines | Build established: Mutant 427 | -10/Mines | A weapon hastily lodged in a ceiling crevice suddenly fell to the ground 873 | -10/Mines | Received a Mining Laser from a helpful Derelict 1037 | -10/Mines | Discovered new exit (range 11) 1058 | -10/Mines | Entered Materials 1058 | -9/Materials | Accompanied by 1 ally 1058 | -9/Materials | Evolved 2 slots: Utility x1, Weapon x1 1122 | -9/Materials | Discovered new exit (range 16) 1332 | -9/Materials | Repaired Imp. Heat Sink 1397 | -9/Materials | Entered Mines 1401 | -9/Mines | Learned Materials emergency access door positions 1465 | -9/Mines | Core integrity fell below 50% 1489 | -9/Mines | Lost 3 parts (2n1w) 1515 | -9/Mines | Assembled infested the area 1552 | -9/Mines | Core integrity fell below 20% 1554 | -9/Mines | Destroyed by D-53 Grenadier with Mini Grenade Launcher Last Messages --------------- 01536_ as-81158 destroyed. 01536_ as-09303 destroyed. 01536_ as-55719 destroyed. 01536_ as-36661 destroyed. 01536_ as-68612 destroyed. 01537_ as-41286 destroyed. 01537_ as-31103 destroyed. 01538_ as-23390 destroyed. 01538_ as-92670 destroyed. 01538_ R-06 Scavenger collects Particle Cannon. 01539_ The unstable cave ceiling collapses. 01539_ as-79021 destroyed. 01540_ R-06 Scavenger destroyed. 01541_ Lgt. Treads destroyed. 01544_ Ion Engine destroyed. 01544_ S-10 Pest destroyed. 01547_ U-05 Engineer builds a Wall. 01548_ The unstable cave ceiling collapses. 01550_ U-05 Engineer lays Concrete. 01552_ U-05 Engineer destroyed. Map ----- +----------------------------------------------------+ | ?????????????????????????????????????????????????? | | ?????????????????????????????????????????????????? | | ?????????????????????????????????????????????????? | | ?????????????????????????????????????????????????? | | ?????????????????????????????????????????????????? | | ?????????????????????????????????????????????????? | | ?????????????????????????????????????????????????? | | ?????????????????????????????????????????????????? | | ?????????????????????????????????????????????????? | | ?????????????????????????????????????????????????? | | ?????????????????????????????????????????????????? | | ?????????????????????????????????????????????????? | | ??????????????????##?????????????????????????????? | | ?????????????????## ????????????????????????????? | | ?????????????????# ????????????????????????????? | | ????????????????## ???????????????????????????? | | ????????????????# ???????????????????????????? | | ???????????????## #??????????????????????????? | | ???????????????? ####??????????????????????? | | ?????????????????# ##?????????????????????? | | ??????????????????# #?????????????????????? | | ?????????????????## #?????????????????????? | | ????????????????## ss ###???######??#???????? | | ????????????????? ##?## ## ##?????? | | ????????????????????# ### #?????? | | ?????????????????????# @ ##????? | | ?????????????????????# ##???? | | ?????????????????????# ##### | | ?????????????????????# """ | | ?????????????????????## """ % | | ??????????????????????# # """ | | ??????????????????????## # | | ???????????????????????## ## #?? | | ????????????????????????## d #??## #??? | | ?????????????????????????# d #??## ##??? | | ???????????????????####### ##### ####### | | ?????????????????# ## | | ?????????????????# " ######## | | ?????????????? ####### " #??????? | | ????????????????????????? ##??????? | | ?????????????????????????# #???????? | | ?????????????????????????######## ##???????? | | ????????????????????????????????#########????????? | | ?????????????????????????????????????????????????? | | ?????????????????????????????????????????????????? | | | | | | | | | | | +----------------------------------------------------+ Best States ------------- Heat Dissipation 42 Energy Generation 10 Energy Capacity 250 Matter Stores 300 Matter Capacity 300 Sight Range 16 Terrain Scan Density 10 Evasion (%) 55 Targeting Accuracy 6 Melee Accuracy 5 Recoil Reduction 2 Item Schematics ----------------- None Robot Schematics ------------------ None Fabricated ------------ Nothing Alien Tech Used ----------------- None Achievements -------------- It's Just You Part-time Mechanic Challenges ------------ None Game ------ Seed LegAssemblyLattice Manual? 0 Play Time 00:30:52 Cumulative 1.4 hours Start 2024.03.31 @ 11:11:06 End 2024.03.31 @ 11:41:32 Sessions 1 Manual Loads 0 Difficulty Rogue Special Mode None Game No. 3 Rogue 3 Adventurer 0 Explorer 0 Win Type - Total 0 Types 0/0/0/0/0/0/0/0/0 Lore% 3 Gallery% 4 Achievement% 4 Wizard Run 0 Options --------- Layout 1 ASCII 0 Keyboard 0 Movement Numpad Keybinds 0 Fullscreen 1 Font 24/Smallcaps Map View 50x35 Zoom Use 0% Tactical HUD 1 Map Filters NONE Filters NONE Steam 1 RUN: c20fe060-93b7-4ab2-8a1c-9c04f39f58d3